Cogmind - Beta 13 @@@ ROGUE MODE // 2024.04.07 @ 09:06:58 Player: MetallicDragon Result: Destroyed self with Rocket Launcher Performance ------------- Evolutions (0) 0 Regions Visited (4) 800 Robots Destroyed (29) 145 Value Destroyed (576) 576 Prototype IDs (23) 460 Alien Tech Used (0) 0 Bonus (300) 300 TOTAL SCORE: 2281 Bonus ------- Aligned with FarCom 300 Cogmind --------- Core Integrity 0/250 Matter 182/300 Energy 250/250 System Corruption 0% Temperature Cool (6) Movement Walking (260) Ox2 Location -9/Mines Parts ------- > --- POWER (1) -------- Ion Engine > --- PROPULSION (2) --- Aluminum Leg Aluminum Leg > --- UTILITY (2) ------ High-capacity Storage Unit Structural Scanner > --- WEAPON (2) ------- Autogun Rocket Launcher > --- INVENTORY (20) --- Light Ion Engine Light Ion Engine Flight Unit Flight Unit Flight Unit Flight Unit Heat Sink Large Matter Pod (150) Visual Processing Unit Sensor Array Terrain Scanner Terrain Scan Processor 0b10 Alert Chip Utility Shielding Autogun Rocket Launcher Rocket Launcher Rocket Launcher Datajack Heavy Hammer Peak State ------------ > --- POWER ------------ Light Nuclear Core > --- PROPULSION ------- Light Treads Light Treads > --- UTILITY ---------- High-capacity Storage Unit Improved Terrain Scanner > --- WEAPON ----------- Light Assault Rifle Light Assault Rifle > --- INVENTORY -------- Light Ion Engine Large Matter Pod Visual Processing Unit Sensor Array Terrain Scan Processor ECM Suite Utility Shielding Heavy Hammer [Rating: 12] Favorites ----------- Power Ion Engine Engine Ion Engine Power Core Light Nuclear Core Propulsion Aluminum Leg Treads Light Treads Leg Aluminum Leg Utility High-capacity Storage Unit Device Structural Scanner Storage High-capacity Storage Unit Weapon Autogun Energy Cannon Beam Cannon Ballistic Gun Autogun Launcher Rocket Launcher Impact Weapon Heavy Hammer Build | -11 -10 -10 -10 -9 ------- Run | Yrd Mat Min Exi Min Slots Evolved . | . . . . . Power . | . . . . . Propulsion . | . . . . . Utility . | . . . . . Weapon . | . . . . . Parts Attached 28 | 7 17 3 . 1 Power 4 | 1 3 . . . Engine 3 | 1 2 . . . Core 1 | . 1 . . . Reactor . | . . . . . Propulsion 5 | 2 3 . . . Treads 2 | 2 . . . . Leg 3 | . 3 . . . Wheel . | . . . . . Hover . | . . . . . Flight . | . . . . . Utility 5 | 2 3 . . . Device 3 | 1 2 . . . Storage 2 | 1 1 . . . Processor . | . . . . . Hackware . | . . . . . Protection . | . . . . . Artifact . | . . . . . Weapon 14 | 2 8 3 . 1 Energy Gun . | . . . . . Energy Cannon 4 | . 4 . . . Ballistic Gun 6 | 2 2 2 . . Ballistic Cannon . | . . . . . Launcher 2 | . . 1 . 1 Special Weapon . | . . . . . Impact Weapon 2 | . 2 . . . Slashing Weapon . | . . . . . Piercing Weapon . | . . . . . Special Melee Weapon . | . . . . . Unidentified Prototypes . | . . . . . Parts Lost 6 | . 6 . . . Power 2 | . 2 . . . Propulsion 2 | . 2 . . . Utility 1 | . 1 . . . Weapon 1 | . 1 . . . Highest Loss Streak 3 | . 3 . . . To Critical Strikes . | . . . . . Average Slot Usage (%) 98 | . 95 100 100 100 Engine 12 | . 9 14 14 14 Core 1 | . 2 . . . Treads 4 | . 9 . . . Leg 23 | . 16 28 28 28 Device 13 | . 13 14 14 14 Storage 14 | . 14 14 14 14 Energy Cannon 4 | . 9 . . . Ballistic Gun 23 | . 17 28 28 14 Naked Turns . | . . . . . Heaviest Build 52 | 13 52 52 52 . Greatest Support 40 | 40 40 20 20 . Greatest Overweight (x) 16 | . 16 2 2 . Average Overweight (x) 1 | . 1 2 2 . Largest Inventory Capacity 20 | 8 20 20 20 20 Average Capacity 19 | 7 18 20 20 20 Most Carried 20 | 1 19 20 20 20 Average Carried 15 | . 10 18 19 20 Final Capacity 20 | 8 20 20 20 20 Final Carried 20 | 1 19 19 20 20 Class Distribution -------------------- 73% | Scavenger-Mutant 26% | Mutant Dominant Class ---------------- Mutant | -10/Materials Scavenger-Mutant | -10/Mines Scavenger-Mutant | -10/Exiles Scavenger-Mutant | -9/Mines Resources | -11 -10 -10 -10 -9 ----------- Run | Yrd Mat Min Exi Min Matter Collected 726 | 218 437 71 . . Remotely . | . . . . . Salvage Created 752 | 14 681 57 . . Parts 56 | 3 45 8 . . Haulers Intercepted . | . . . . . Recyclers Shooed . | . . . . . Parts Field Recycled . | . . . . . Retrieved Matter . | . . . . . Parts Self-Destructed . | . . . . . Prevented . | . . . . . Kills | -11 -10 -10 -10 -9 ------- Run | Yrd Mat Min Exi Min Combat Hostiles Destroyed 18 | . 12 6 . . Guns 8 | . 5 3 . . Cannons 7 | . 7 . . . AOE 3 | . . 3 . . Classes Destroyed 7 | 1 6 . . . Builder 3 | . 3 . . . Tunneler 1 | 1 . . . . Recycler 1 | . 1 . . . Operator 3 | . 3 . . . Watcher 3 | . 3 . . . Swarmer 9 | . 3 6 . . Grunt 9 | . 9 . . . Best Kill Streak 3 | 1 2 3 . . Combat Bots Only 3 | . 2 3 . . Max Kills in Single Turn 2 | 1 1 2 . . Gunslinging 1 | . . 1 . . Exploded 2 | . . 2 . . Melee . | . . . . . Uniques/NPCs Destroyed . | . . . . . Combat | -11 -10 -10 -10 -9 -------- Run | Yrd Mat Min Exi Min Hostile Shots Fired 120 | . 92 25 . 3 Missed 36 | . 23 13 . . Damage Taken 1111 | . 924 91 . 96 Core 260 | . 183 32 . 45 Absorbed by Shields . | . . . . . Core Remaining (%) 100 | 100 . . . . Volleys Fired 100 | 6 84 7 . 3 Largest 2 | 2 2 2 . 1 Hottest 120 | 40 120 46 . 33 Shots Fired 192 | 12 165 12 . 3 Gun 139 | 12 117 10 . . Cannon 48 | . 48 . . . Launcher 5 | . . 2 . 3 Special . | . . . . . Kinetic 139 | 12 117 10 . . Thermal 48 | . 48 . . . Explosive 5 | . . 2 . 3 Electromagnetic . | . . . . . Robot Hit Streak 8 | 4 8 7 . 8 Robot Miss Streak 5 | 3 5 2 . 1 Penetration Max . | . . . . . Secondary Targets 2 | . 1 1 . . Max Gunslinging Chain 1 | . 1 1 . . Shots Hit Robots 107 | 8 90 8 . 1 Core Hits 51 | 3 40 7 . 1 Critical Kills . | . . . . . Critical Parts Destroyed . | . . . . . Critical Strikes . | . . . . . Melee Attacks 2 | . 2 . . . Impact 2 | . 2 . . . Slashing . | . . . . . Piercing . | . . . . . Sneak Attacks . | . . . . . Combat Hostiles . | . . . . . Follow-up Attacks . | . . . . . Damage Inflicted 1604 | 76 989 345 . 194 Guns 723 | 76 555 92 . . Cannons 403 | . 403 . . . Explosions 447 | . . 253 . 194 Melee 31 | . 31 . . . Ramming . | . . . . . Kinetic 723 | 76 555 92 . . Thermal 403 | . 403 . . . Explosive 447 | . . 253 . 194 Electromagnetic . | . . . . . Impact 31 | . 31 . . . Slashing . | . . . . . Piercing . | . . . . . Highest Corruption . | . . . . . Average Corruption . | . . . . . Corruption Purged . | . . . . . Corruption Blocked . | . . . . . Overload Shots . | . . . . . Overflow Damage 54 | . 26 7 . 21 Projectiles 26 | . 26 . . . Explosions 28 | . . 7 . 21 Melee . | . . . . . Knockbacks . | . . . . . Impact . | . . . . . Kinetic . | . . . . . Secondary . | . . . . . Self-Inflicted Damage 54 | . . . . 54 Shots 2 | . . . . 2 Rammed . | . . . . . Targets Rammed . | . . . . . Kicked . | . . . . . Crushed . | . . . . . Highest Temperature 240 | . 240 12 . 6 Average Temperature 37 | . 39 5 . 4 Received Heat Transfer 384 | . 360 . . 24 Siege Activations . | . . . . . Robots Corrupted . | . . . . . Combat Hostiles . | . . . . . Parts Fried . | . . . . . Impact Corruptions . | . . . . . Robots Melted . | . . . . . Combat Hostiles . | . . . . . Parts Melted 1 | . 1 . . . Heat Transferred 851 | . 851 . . . Parts Sabotaged . | . . . . . Parts Stolen . | . . . . . Parts Stripped . | . . . . . Power Chain Reactions . | . . . . . Alert | -11 -10 -10 -10 -9 ------- Run | Yrd Mat Min Exi Min Peak Influence 134 | 5 134 84 . 21 Initial 3 | . 3 . . . Average 36 | 1 40 32 . 10 Maximum Alert Level . | . . . . . Low Security (%) 100 | 100 100 100 . 100 Level 1 . | . . . . . Level 2 . | . . . . . Level 3 . | . . . . . Level 4 . | . . . . . Level 5 . | . . . . . High Security . | . . . . . Max Security . | . . . . . Squads Dispatched 4 | . 4 . . . Investigation 1 | . 1 . . . Extermination . | . . . . . Reinforcement 3 | . 3 . . . Assault . | . . . . . Garrison . | . . . . . Intercept . | . . . . . Searches Triggered . | . . . . . Construction Impeded . | . . . . . Haulers Reinforced . | . . . . . Active Scanning Responses . | . . . . . Cargo Convoy Interrupts . | . . . . . Stealth | -11 -10 -10 -10 -9 --------- Run | Yrd Mat Min Exi Min Distress Signals 1 | . 1 . . . Communications Jammed . | . . . . . Distress Signals . | . . . . . Times Spotted 32 | . 24 6 . 2 Peak Tracking Total 3 | . 3 3 . 2 Tactical Retreats . | . . . . . Traps | -11 -10 -10 -10 -9 ------- Run | Yrd Mat Min Exi Min Traps Triggered . | . . . . . Indirectly . | . . . . . Trap Hack Attempts . | . . . . . Triggered . | . . . . . Disarmed . | . . . . . Reprogrammed . | . . . . . Reused . | . . . . . Traps Extracted . | . . . . . Installed . | . . . . . Triggered . | . . . . . Machines | -11 -10 -10 -10 -9 ---------- Run | Yrd Mat Min Exi Min Machines Disabled 3 | . 3 . . . Max in Single Turn 1 | . 1 . . . Machines Repaired . | . . . . . Machines Dismantled . | . . . . . Machines Sabotaged . | . . . . . Overloaded Fab Kills . | . . . . . Hacking | -11 -10 -10 -10 -9 --------- Run | Yrd Mat Min Exi Min Machines Accessed 8 | . 6 . 2 . Terminals 4 | . 4 . . . Fabricators . | . . . . . Repair Stations . | . . . . . Recycling Units 2 | . 2 . . . Scanalyzers . | . . . . . Garrison Access . | . . . . . Total Hacks 18 | . 12 . 6 . Successful 14 | . 8 . 6 . Failed 4 | . 4 . . . Catastrophic . | . . . . . Database Lockouts . | . . . . . Manual 3 | . 2 . 1 . Terminals 10 | . 10 . . . Fabricators . | . . . . . Repair Stations . | . . . . . Recycling Units 2 | . 2 . . . Scanalyzers . | . . . . . Garrison Access . | . . . . . Terminal Hacks 12 | . 6 . 6 . Record 5 | . . . 5 . Alert Level 1 | . 1 . . . Locate Traps 3 | . 3 . . . Hauler Manifests 2 | . 2 . . . Derelict Proto ID Bank 1 | . . . 1 . Fabricator Hacks . | . . . . . Repair Station Hacks . | . . . . . Recycling Unit Hacks 2 | . 2 . . . Report Inventory 2 | . 2 . . . Scanalyzer . | . . . . . Garrison Access Hacks . | . . . . . Unauthorized Hacks . | . . . . . Terminals . | . . . . . Fabricators . | . . . . . Repair Stations . | . . . . . Recycling Units . | . . . . . Scanalyzers . | . . . . . Garrison Access . | . . . . . Data Cores Recovered . | . . . . . Used . | . . . . . Hacking Detections 3 | . 3 . . . Full Trace Events 1 | . 1 . . . Feedback Events . | . . . . . Feedback Blocked . | . . . . . Robot Schematics Acquired . | . . . . . Robots Built . | . . . . . Authchips . | . . . . . Time . | . . . . . Total Robot Build Rating . | . . . . . Part Schematics Acquired . | . . . . . Parts Built . | . . . . . Authchips . | . . . . . Time . | . . . . . Total Part Build Rating . | . . . . . Parts Repaired . | . . . . . Time . | . . . . . Parts Recycled . | . . . . . Recycled Matter . | . . . . . Retrieved Matter . | . . . . . Retrieved Components . | . . . . . Parts Scanalyzed . | . . . . . Part Schematics Acquired . | . . . . . Parts Damaged . | . . . . . Bothacking | -11 -10 -10 -10 -9 ------------ Run | Yrd Mat Min Exi Min Used RIF Installer . | . . . . . Robots Hacked . | . . . . . Non-combat . | . . . . . Combat . | . . . . . Robot Hacks Applied . | . . . . . Relay Couplers Released . | . . . . . Fabnet Peak Effective % . | . . . . . Robots Rewired . | . . . . . Allies Hacked . | . . . . . Hacks Repelled . | . . . . . Allies | -11 -10 -10 -10 -9 -------- Run | Yrd Mat Min Exi Min Total Allies . | . . . . . Largest Group . | . . . . . Highest-Rated Group . | . . . . . Highest-Rated Ally . | . . . . . Total Orders . | . . . . . Ally Attacks . | . . . . . Total Damage . | . . . . . Kills . | . . . . . Allies Corrupted . | . . . . . Allies Melted . | . . . . . Intel | -11 -10 -10 -10 -9 ------- Run | Yrd Mat Min Exi Min Robot Analysis Total . | . . . . . Derelict Logs Recovered 3 | . . 3 . . Drone Launches . | . . . . . Drone Recoveries . | . . . . . Exploration | -11 -10 -10 -10 -9 ------------- Run | Yrd Mat Min Exi Min Turns Passed 5731 | 124 2416 1772 1413 6 Spaces Moved 2139 | 62 865 668 544 . Core 3 | 1 2 . . . Treads 413 | 61 352 . . . Legs 1723 | . 511 668 544 . Wheels . | . . . . . Hover . | . . . . . Flight . | . . . . . Fastest Speed 50 | 50 160 260 260 . Average Speed 251 | 158 245 260 260 . Slowest Speed 850 | 160 850 260 260 . Overloaded Moves . | . . . . . Propulsion Burnouts . | . . . . . Robots Hopped . | . . . . . Cave-ins Triggered . | . . . . . Exploration Rate (%) 59 | 6 98 98 89 4 Regions Visited 4 Branch Regions 3 Pre-discovered Areas 1 | . . . 1 . Known Exits Taken . | . . . . . Unknown Exits Taken 4 | 1 1 1 1 . Scrap Searched 1 | . . 1 . . Spaces Dug 1 | . 1 . . . Terrain Destroyed 42 | . 1 18 . 23 Melee 1 | . 1 . . . Projectile . | . . . . . AOE 41 | . . 18 . 23 Terrain Rammed . | . . . . . Walls Destroyed . | . . . . . Machines Disabled . | . . . . . Actions | -11 -10 -10 -10 -9 --------- Run | Yrd Mat Min Exi Min Total 2325 | 75 1008 694 544 4 Wait 20 | . 9 11 . . Move 2135 | 61 864 667 543 . Hop . | . . . . . Pick Up 28 | 1 23 3 1 . Fast Attach 16 | 7 9 . . . Attach 3 | . 3 . . . Detach 1 | . 1 . . . Swap 9 | . 5 3 . 1 Drop 11 | . 8 3 . . Fire 100 | 6 84 7 . 3 Melee 2 | . 2 . . . Ram . | . . . . . Kick . | . . . . . Crush . | . . . . . Escape Stasis . | . . . . . Rewire . | . . . . . Trap . | . . . . . Miscellaneous . | . . . . . Route ------- -11/Scrapyard -10/Materials (discovered 5 exits: [*Mat x3] / [*Min x2]) -10/Mines (discovered 4 exits: [*Mat x2] / *Exi / [Sub]) -10/Exiles (discovered 2 exits: [*Min x2]) -9/Mines History --------- Turn | Location | Event 7 | -11/Scrapyard | Discovered new exit (range 15) 125 | -11/Scrapyard | Entered Materials 303 | -10/Materials | Build established: Mutant 655 | -10/Materials | Discovered new exit (range 5) 737 | -10/Materials | Discovered new exit (range 13) 999 | -10/Materials | Discovered new exit (range 9) 1079 | -10/Materials | Core integrity fell below 50% 1113 | -10/Materials | Lost 3 parts (1n1u1w) 1226 | -10/Materials | Discovered new exit (range 10) 1808 | -10/Materials | Build established: Scavenger-Mutant 1997 | -10/Materials | Discovered new exit (range 10) 2541 | -10/Materials | Entered Mines 2544 | -10/Mines | Core integrity fell below 20% 2876 | -10/Mines | Discovered new exit (range 12) 3377 | -10/Mines | Deemed a non-threat by the Exiles lab entrance 3377 | -10/Mines | Discovered new exit (range 6) 3559 | -10/Mines | Learned Materials trap positions 3699 | -10/Mines | Discovered new exit (range 10) 3806 | -10/Mines | Learned Materials emergency access door positions 3956 | -10/Mines | Discovered new exit (range 5) 4313 | -10/Mines | Entered Exiles 4350 | -10/Exiles | Discovered new exit (range 15) 4399 | -10/Exiles | Met 8R-AWN 4438 | -10/Exiles | Met EX-HEX 4516 | -10/Exiles | Met EX-BIN 4579 | -10/Exiles | Aligned with FarCom system 4581 | -10/Exiles | Given EX-Vault access code 4646 | -10/Exiles | Opened EX-Vault 4659 | -10/Exiles | Found 0b10 Alert Chip 4710 | -10/Exiles | Warned to stay clear of 0b10 Research branches 4782 | -10/Exiles | Met EX-DEC 4893 | -10/Exiles | Visited The Gauntlet 5305 | -10/Exiles | Learned location of Zion (-7) 5401 | -10/Exiles | Discovered new exit (range 10) 5726 | -10/Exiles | Left Exiles lab with 0b10 Alert Chip 5726 | -10/Exiles | Entered Mines 5732 | -9/Mines | Destroyed self with Rocket Launcher Last Messages --------------- Interpreter is optional since I know you're all smart enough to figure out what most of the blips are by watching their behavior for a short while. >>Record "MSG004902-01*" PINNED - I saw a Programmer snooping around in the Mines recently, it's only a matter of time before they find us. We might need to prioritize getting out of here and finding a better environment less hostile to science. >>Record "MSG001836-01" DEC, I lent the Quad Micro-nuker to 99-TNT for a favor, so I'm not sure we'll ever get that back. Oops. EXIT=FOUND LOCATION=UNKNOWN GOAL=ESCAPE Receiving FarCom transmissions... T-07 Excavator is excavating. Destroyed Aluminum Leg. Map ----- +----------------------------------------------------+ | ??????????????????????????????????????? | | ??????????????????????????????????????? | | ??????????????????????????????????????? | | ??????????????????????????????????????? | | ??????????????????????????????????????? | | ??????????????????????????????????????? | | ??????????????????????????????????????? | | ??????????????????????????????????????? | | ??????????????????????????????????????? | | ??????????????????????????????????????? | | ??????????????????????????????????????? | | ??????????????????????????????????????? | | ??????????????????????????????????????? | | ??????????????????????????????????????? | | ???????????####???????????????????????? | | ?????###???####???????????????????????? | | ?????## ??? ???????????????????????? | | ???#### ??? ????????????????????????? | | ??##### #### ????????????????????????? | | ??### # #### ????????????????????????? | | ??## ### ###?????????????????????? | | ??## ###?????????????????????? | | ??## ##?????????????????????? | | ??# gg ### ?? ##??????????????? | | ???????## ### ##??????????????? | | ???????## @ ####??????????????? | | ???????## ### ###????????????????? | | ???????#### # ### ###????????????????? | | ???????###### ##?????????????????????? | | ?????????#### ##?????????????????????? | | ???????????## t##?????????????????????? | | ???????????## ##?????????????????????? | | ???????????######?????????????????????? | | ???????????######?????????????????????? | | ??????????????????????????????????????? | | ??????????????????????????????????????? | | ??????????????????????????????????????? | | ??????????????????????????????????????? | | ??????????????????????????????????????? | | ??????????????????????????????????????? | | ??????????????????????????????????????? | | ??????????????????????????????????????? | | ??????????????????????????????????????? | | ??????????????????????????????????????? | | | | | | | | | | | | | +----------------------------------------------------+ Best States ------------- Heat Dissipation 35 Energy Generation 14 Energy Capacity 250 Matter Stores 300 Matter Capacity 300 Sight Range 16 Terrain Scan Range 16 Terrain Scan Density 10 Evasion (%) 40 Recoil Reduction 2 Item Schematics ----------------- None Robot Schematics ------------------ None Fabricated ------------ Nothing Alien Tech Used ----------------- None Achievements -------------- None Challenges ------------ None Game ------ Seed MatterReactionBroadsword Manual? 0 Play Time 00:27:45 Cumulative 14.5 hours Start 2024.04.07 @ 08:38:17 End 2024.04.07 @ 09:06:58 Sessions 1 Manual Loads 0 Difficulty Rogue Special Mode None Game No. 8 Rogue 2 Adventurer 6 Explorer 0 Win Type - Total 0 Types 0/0/0/0/0/0/0/0/0 Lore% 18 Gallery% 22 Achievement% 18 Wizard Run 0 Options --------- Layout 1 ASCII 0 Keyboard 0 Movement Mouse Keybinds 0 Fullscreen 2 Font 32/SmallcapsGlow Map View 50x35 Zoom Use 0% Tactical HUD 0 Map Filters NONE Filters NONE Steam 1 RUN: 1772ec7b-4003-4a92-a0f1-3fa88b99e5f8